bitfinex-derivatives/quotes_BTCF0:USTF0_20241025
["timestamp","ask_amount","ask_price","bid_price","bid_amount"]
[1729896845268,0.074823,66932.0,66931.0,0.074824]
[1729896845459,0.50749078,66932.0,66931.0,0.074824]
[1729896846266,0.14669178,66931.0,66930.0,0.21988]
[1729896846468,0.074826,66930.0,66928.0,0.074827]
[1729896846656,0.07186778,66931.0,66929.0,0.21988]
[1729896846972,0.07186778,66931.0,66930.0,0.074825]
[1729896847762,0.07186778,66931.0,66930.0,0.294705]
[1729896848267,0.14669178,66931.0,66930.0,0.294705]
[1729896848669,0.50749178,66931.0,66930.0,0.294705]
[1729896850177,0.50749178,66931.0,66930.0,0.21988]
[1729896850858,0.074825,66930.0,66929.0,0.074826]
[1729896851072,0.074827,66929.0,66927.0,0.074828]
[1729896851265,0.14669578,66928.0,66927.0,0.074828]
[1729896851567,0.14669578,66928.0,66926.0,0.00224045]
[1729896851568,0.074835,66921.0,66920.0,0.03942753]
[1729896851767,0.50750278,66921.0,66920.0,0.03942753]
[1729896852369,0.50750278,66921.0,66900.0,0.074858]
[1729896852370,0.074845,66912.0,66907.0,0.21988]
[1729896852674,0.43271159,66921.0,66907.0,0.294731]
[1729896852675,0.07191159,66908.0,66907.0,0.294731]
[1729896852858,0.07191159,66908.0,66907.0,0.074851]
[1729896853064,0.07191159,66908.0,66901.0,0.0305]
[1729896853065,0.074851,66907.0,66906.0,0.21992]
[1729896853466,0.074851,66907.0,66904.0,0.074853]
[1729896853659,0.07191159,66906.0,66905.0,0.29701483]
[1729896854064,0.07191159,66906.0,66905.0,0.07709483]
[1729896854261,0.07191159,66906.0,66881.0,0.43568]
[1729896854461,0.50757059,66900.0,66893.0,0.21156]
[1729896854658,0.50757059,66900.0,66898.0,0.074861]
[1729896854859,0.50757059,66900.0,66897.0,0.21156]
[1729896855063,0.54354768,66900.0,66897.0,0.21156]
[1729896855264,0.46868868,66900.0,66897.0,0.21156]
[1729896855563,0.46868868,66900.0,66897.0,0.286422]
[1729896856157,1.02501736,66900.0,66894.0,0.074865]
[1729896856362,1.02501736,66900.0,66895.0,0.074864]
[1729896856764,1.75032251,66900.0,66875.0,0.3608]
[1729896857065,1.75032251,66900.0,66873.0,0.37712]
[1729896857066,0.46868868,66876.0,66873.0,0.37712]
[1729896857273,0.57657736,66876.0,66875.0,0.074887]
[1729896858067,0.57657736,66876.0,66873.0,0.37712]
[1729896858463,0.3608,66876.0,66875.0,0.074887]
[1729896858664,0.3109,66876.0,66875.0,0.074887]
[1729896858862,0.3109,66876.0,66875.0,0.286527]
[1729896858863,0.41878868,66876.0,66875.0,0.286527]
[1729896859272,0.41878868,66876.0,66875.0,0.074887]
[1729896859467,0.41878868,66876.0,66875.0,0.286527]
[1729896860569,0.41878868,66876.0,66875.0,0.074887]
[1729896863371,0.86738868,66876.0,66875.0,0.074887]
[1729896863570,0.86738868,66876.0,66873.0,0.52122]
[1729896863769,0.4486,66875.0,66873.0,0.1441]
[1729896864173,0.4486,66874.0,66873.0,0.218988]
[1729896864374,0.4486,66875.0,66873.0,0.1665293]
[1729896864566,0.42066869,66876.0,66875.0,0.074887]
[1729896864769,0.41878868,66876.0,66875.0,0.074887]
[1729896866379,0.86738868,66876.0,66875.0,0.074887]
[1729896867875,0.86738868,66876.0,66873.0,0.0391413]
[1729896868176,0.4486,66875.0,66873.0,0.0391413]
[1729896868369,0.4486,66875.0,66873.0,0.1140293]
[1729896868574,0.3608,66874.0,66841.0,0.3608]
[1729896868767,0.21577736,66846.0,66845.0,0.4522]
[1729896868971,0.3608,66850.0,66849.0,0.074915]
[1729896871086,0.3608,66850.0,66828.0,0.20344]
[1729896871280,0.3608,66850.0,66849.0,0.074916]
[1729896871782,0.80956,66850.0,66849.0,0.074916]
[1729896872277,0.3608,66850.0,66849.0,0.074916]
[1729896872581,0.57657736,66850.0,66849.0,0.074916]
[1729896873487,0.3608,66850.0,66849.0,0.074916]
[1729896873692,0.46868868,66850.0,66849.0,0.278356]
[1729896874276,0.46876502,66850.0,66849.0,0.278356]
[1729896875079,0.43277243,66850.0,66849.0,0.278356]
[1729896875586,0.07197243,66850.0,66849.0,0.278356]
[1729896876580,0.14394486,66856.0,66855.0,0.074909]
[1729896876777,0.50474486,66856.0,66843.0,0.3608]
[1729896876979,0.3608,66849.0,66848.0,0.074917]
[1729896877988,0.43277243,66849.0,66848.0,0.074917]
[1729896882987,0.3608,66855.0,66854.0,0.074909]
[1729896883188,0.43277243,66855.0,66854.0,0.074909]
[1729896884093,0.88149243,66855.0,66854.0,0.074909]
[1729896884484,0.9513817,66855.0,66854.0,0.074909]
[1729896884691,0.95139866,66855.0,66854.0,0.074909]
[1729896884994,0.88149243,66855.0,66854.0,0.074909]
[1729896885290,0.88149243,66855.0,66851.0,0.074909]
[1729896885291,0.14687943,66854.0,66851.0,0.074909]
[1729896885496,0.074913,66849.0,66846.0,0.074915]
[1729896885793,0.43277243,66847.0,66846.0,0.074915]
[1729896886490,0.50250086,66847.0,66846.0,0.074915]
[1729896886991,0.50250086,66847.0,66846.0,0.261395]
[1729896887496,0.43277243,66847.0,66846.0,0.261395]
[1729896889304,0.43277243,66847.0,66846.0,0.074915]
[1729896889593,0.43277243,66847.0,66846.0,0.261395]
[1729896890496,0.43277243,66847.0,66846.0,0.074915]
[1729896890696,0.43277243,66847.0,66846.0,0.261395]
[1729896892400,0.50266602,66847.0,66846.0,0.261395]
[1729896893198,0.50266602,66847.0,66846.0,0.074915]
[1729896893400,0.50266602,66847.0,66846.0,0.261395]
[1729896893799,0.43069359,66847.0,66846.0,0.261395]
[1729896894403,0.50266602,66847.0,66846.0,0.20891755]
[1729896894599,0.50266602,66847.0,66846.0,0.261395]
[1729896894993,0.43069359,66847.0,66846.0,0.261395]
[1729896896704,0.43277243,66847.0,66846.0,0.261395]
[1729896897098,0.3608,66847.0,66846.0,0.261395]
[1729896897300,0.43277243,66847.0,66846.0,0.261395]
[1729896899197,0.3608,66847.0,66846.0,0.261395]
[1729896899400,0.43277243,66847.0,66846.0,0.261395]
[1729896900399,0.50062177,66847.0,66846.0,0.261395]
[1729896901011,0.50743716,66847.0,66846.0,0.261395]
[1729896901303,0.14663716,66847.0,66846.0,0.261395]
[1729896901498,0.07197243,66847.0,66846.0,0.261395]
[1729896901700,0.06782752,66847.0,66846.0,0.261395]
[1729896902405,0.07197243,66851.0,66850.0,0.074911]
[1729896902603,0.13986845,66851.0,66850.0,0.074911]
[1729896903022,0.06789602,66851.0,66850.0,0.074911]
[1729896903807,0.36268001,66853.0,66850.0,0.074911]
[1729896904113,0.3608,66853.0,66852.0,0.074909]
[1729896904517,0.50474486,66853.0,66852.0,0.074909]
[1729896904915,0.95350486,66853.0,66846.0,0.1786]
[1729896905103,0.14688643,66847.0,66846.0,0.1786]
[1729896905406,0.2147621,66847.0,66846.0,0.1786]
[1729896906308,0.074918,66844.0,66837.0,0.3608]
[1729896906499,0.07197243,66847.0,66838.0,0.1786]
[1729896906702,0.21885886,66847.0,66846.0,0.074915]
[1729896906903,0.074911,66851.0,66850.0,0.074911]
[1729896907910,0.14688343,66851.0,66850.0,0.074911]
[1729896909813,0.074911,66851.0,66850.0,0.074911]
[1729896910504,0.3608,66853.0,66852.0,0.074909]
[1729896911515,0.3608,66853.0,66852.0,0.245669]
[1729896911713,0.01744257,66860.0,66859.0,0.074901]
[1729896911903,0.0749,66860.0,66859.0,0.074901]
[1729896912306,0.07197243,66863.0,66862.0,0.074897]
[1729896912715,0.07197243,66863.0,66862.0,0.245617]
[1729896913022,0.07197243,66863.0,66847.0,0.07197243]
[1729896913023,0.52065243,66863.0,66853.0,0.17072]
[1729896913219,0.45177017,66864.0,66853.0,0.17072]
[1729896913220,0.14687843,66854.0,66853.0,0.17072]
[1729896914216,0.074911,66850.0,66849.0,0.074912]
[1729896914415,0.14688343,66850.0,66849.0,0.245632]
[1729896915906,0.14688343,66850.0,66849.0,0.074912]
[1729896916112,0.14688343,66850.0,66849.0,0.245632]
[1729896918211,0.074911,66850.0,66849.0,0.245632]
[1729896919215,0.07197243,66854.0,66852.0,0.074909]
[1729896919216,0.3608,66853.0,66852.0,0.074909]
[1729896919411,0.3608,66853.0,66852.0,0.245629]
[1729896920113,0.43277243,66853.0,66852.0,0.245629]
[1729896920320,0.50768043,66853.0,66852.0,0.17072]
[1729896920624,0.435708,66853.0,66852.0,0.245629]
[1729896920921,0.50768043,66853.0,66852.0,0.17072]
[1729896922011,0.07491,66851.0,66850.0,0.074911]
[1729896922217,0.07491,66851.0,66850.0,0.237831]
[1729896923014,0.3608,66853.0,66852.0,0.074909]
[1729896923015,0.435708,66853.0,66852.0,0.074909]
[1729896923213,0.43277243,66853.0,66848.0,0.074913]
[1729896923521,0.43277243,66853.0,66849.0,0.237832]
[1729896923522,0.074911,66850.0,66849.0,0.237832]
[1729896923723,0.074918,66844.0,66843.0,0.074918]
[1729896923909,0.07197243,66843.0,66840.0,0.3608]
[1729896924219,0.14689143,66843.0,66842.0,0.07492]
[1729896924412,0.07197243,66843.0,66842.0,0.07492]
[1729896924614,0.07197243,66843.0,66842.0,0.23784]
[1729896925019,0.3608,66846.0,66842.0,0.16292]
[1729896925217,0.3608,66846.0,66845.0,0.074917]
[1729896925618,0.435715,66846.0,66845.0,0.074917]
[1729896925820,0.435715,66846.0,66845.0,0.237837]
[1729896933227,0.074915,66846.0,66845.0,0.237837]
[1729896933515,0.435715,66846.0,66845.0,0.237837]
[1729896935230,0.435715,66846.0,66833.0,0.46594973]
[1729896935231,0.07493,66833.0,66828.0,0.074935]
[1729896935422,0.07493,66833.0,66812.0,0.435753]
[1729896935423,0.074945,66820.0,66818.0,0.07484973]
[1729896935619,0.07197243,66818.0,66817.0,0.05988482]
[1729896935820,0.07197243,66818.0,66817.0,0.237868]
[1729896936619,0.3608,66821.0,66820.0,0.074945]
[1729896936926,0.07197243,66828.0,66827.0,0.074937]
[1729896937237,0.36268001,66829.0,66828.0,0.074936]
[1729896937427,0.3608,66829.0,66828.0,0.074936]
[1729896937623,0.3608,66829.0,66828.0,0.237896]
[1729896940419,0.01698033,66834.0,66828.0,0.16296]
[1729896940623,0.074927,66836.0,66828.0,0.16296]
[1729896941133,0.36268001,66837.0,66836.0,0.074927]
[1729896941332,0.3608,66837.0,66836.0,0.074927]
[1729896941636,0.43277243,66837.0,66836.0,0.074927]
[1729896941934,0.3608,66837.0,66836.0,0.074927]
[1729896945332,0.07197243,66842.0,66836.0,0.074927]
[1729896945535,0.07197243,66842.0,66841.0,0.074921]
[1729896947826,0.36268001,66845.0,66841.0,0.14394486]
[1729896948051,0.3608,66845.0,66844.0,0.074918]
[1729896948222,0.3608,66845.0,66844.0,0.229518]
[1729896951530,0.01767367,66848.0,66847.0,0.074914]
[1729896951737,0.07197243,66851.0,66850.0,0.074911]
[1729896951932,0.074908,66853.0,66844.0,0.1546]
[1729896952139,0.14638568,66906.0,66844.0,0.1546]
[1729896952140,0.01730406,66858.0,66852.0,0.14394486]
[1729896952431,0.3608,66872.0,66871.0,0.074888]
[1729896952744,0.3608,66872.0,66871.0,0.229488]
[1729896952745,0.50765843,66872.0,66871.0,0.229488]
[1729896953238,0.43277243,66872.0,66871.0,0.229488]
[1729896953431,0.07197243,66872.0,66871.0,0.229488]
[1729896954523,0.07197243,66877.0,66871.0,0.1546]
[1729896954730,0.074883,66875.0,66874.0,0.074884]
[1729896955028,0.074879,66878.0,66875.0,0.074883]
[1729896955334,0.3608,66880.0,66879.0,0.074877]
[1729896956123,0.45302324,66880.0,66879.0,0.074877]
[1729896957544,0.09222324,66880.0,66879.0,0.074877]
[1729896958435,0.01734724,66880.0,66879.0,0.074877]
[1729896958640,0.07197243,66881.0,66871.0,0.1546]
[1729896958942,0.3608,66884.0,66872.0,0.14394486]
[1729896959141,0.3608,66884.0,66883.0,0.074873]
[1729896960529,0.01692696,66884.0,66883.0,0.074873]
[1729896960732,0.074868,66887.0,66884.0,0.074872]
[1729896961036,0.074866,66889.0,66886.0,0.074869]
[1729896961338,0.074866,66889.0,66887.0,0.14692]
[1729896961528,0.43103674,66893.0,66887.0,0.14692]
[1729896961733,0.074866,66889.0,66888.0,0.074867]
[1729896961928,0.37993674,66893.0,66888.0,0.074867]
[1729896962132,0.37805673,66893.0,66888.0,0.074867]
[1729896962339,0.074865,66891.0,66888.0,0.074867]
[1729896962835,0.37993674,66893.0,66887.0,0.14692]
[1729896963049,0.07197243,66889.0,66887.0,0.14692]
[1729896963241,0.074867,66888.0,66887.0,0.14692]
[1729896963637,0.074867,66888.0,66887.0,0.221788]
[1729896964035,0.074863,66892.0,66888.0,0.074867]
[1729896964235,0.074863,66892.0,66891.0,0.074864]
[1729896964434,0.074863,66892.0,66887.0,0.14692]
[1729896964435,0.074867,66889.0,66868.0,0.074889]
[1729896964647,0.074867,66889.0,66866.0,0.4131]
[1729896964648,0.07197243,66875.0,66866.0,0.3608]
[1729896964946,0.07197243,66866.0,66854.0,0.0528]
[1729896965139,0.074894,66864.0,66863.0,0.14692]
[1729896965336,0.07197243,66870.0,66863.0,0.14692]
[1729896965541,0.074887,66871.0,66865.0,0.14394486]
[1729896965744,0.074887,66870.0,66869.0,0.074888]
[1729896966041,0.3608,66873.0,66870.0,0.074886]
[1729896966345,0.3608,66873.0,66871.0,0.14692]
[1729896966838,0.074885,66872.0,66871.0,0.14692]
[1729896967242,0.074895,66863.0,66850.0,0.00224317]
[1729896967442,0.074909,66851.0,66850.0,0.00224317]
[1729896967740,0.50768143,66851.0,66850.0,0.14916317]
[1729896967939,0.435709,66851.0,66850.0,0.14916317]
[1729896968140,0.3608,66851.0,66850.0,0.22407317]
[1729896969237,0.3608,66851.0,66850.0,0.00224317]
[1729896969443,0.50768143,66851.0,66850.0,0.14692]
[1729896969645,0.435709,66851.0,66850.0,0.14692]
[1729896969843,0.435709,66851.0,66841.0,0.14394486]
[1729896969844,0.435709,66851.0,66847.0,0.074912]
[1729896970046,0.435709,66851.0,66848.0,0.14692]
[1729896970248,0.435709,66851.0,66848.0,0.221831]
[1729896971250,0.074911,66849.0,66848.0,0.221831]
[1729896972855,0.3608,66851.0,66848.0,0.221831]
[1729896973149,0.074852,66902.0,66848.0,0.221831]
[1729896973150,0.07197243,66890.0,66850.0,0.14394486]
[1729896973448,0.07197243,66890.0,66868.0,0.3608]
[1729896973449,0.07197243,66880.0,66868.0,0.3608]
[1729896973651,0.07197243,66880.0,66869.0,0.14692]
[1729896973844,0.074884,66874.0,66869.0,0.14692]
[1729896974041,0.074885,66872.0,66869.0,0.14692]
[1729896975741,0.074885,66872.0,66860.0,0.50474486]
[1729896975742,0.07197243,66870.0,66860.0,0.3608]
[1729896975944,0.14686843,66862.0,66861.0,0.14692]
[1729896976756,0.074897,66861.0,66860.0,0.3608]
[1729896976940,0.074897,66861.0,66860.0,0.14692]
[1729896977443,0.074899,66860.0,66859.0,0.00544732]
[1729896977643,0.07197243,66859.0,66855.0,0.14692]
[1729896977843,0.07197243,66855.0,66837.0,0.3608]
[1729896978081,0.43277243,66856.0,66830.0,0.3608]
[1729896978082,0.074925,66836.0,66830.0,0.435732]
[1729896978256,0.074925,66836.0,66835.0,0.5244]
[1729896978559,0.074925,66836.0,66835.0,0.37748]
[1729896978849,0.074925,66836.0,66835.0,0.52444]
[1729896979048,0.074925,66836.0,66835.0,0.37748]
[1729896979249,0.074925,66836.0,66835.0,0.52444]
[1729896980156,0.07197243,66837.0,66836.0,0.074925]
[1729896981354,0.14689643,66837.0,66836.0,0.074925]
[1729896981859,0.074924,66837.0,66836.0,0.221885]
[1729896982361,0.37825301,66846.0,66844.0,0.074916]
[1729896982553,0.074915,66845.0,66844.0,0.074916]
[1729896983259,0.074917,66844.0,66840.0,0.074921]
[1729896983452,0.07197243,66841.0,66840.0,0.074921]
[1729896984055,0.50768743,66846.0,66844.0,0.074916]
[1729896984250,0.43277243,66846.0,66836.0,0.50776]
[1729896984450,0.07197243,66842.0,66836.0,0.50776]
[1729896984648,0.07197243,66842.0,66841.0,0.07492]
[1729896988757,0.14689143,66842.0,66841.0,0.07492]
[1729896989450,0.074921,66840.0,66837.0,0.074924]
[1729896989652,0.074921,66840.0,66838.0,0.074923]
[1729896989858,0.074925,66836.0,66835.0,0.37748]
[1729896990046,0.074925,66836.0,66835.0,0.52156]
[1729896990247,0.074925,66836.0,66835.0,0.37748]
[1729896990449,0.074934,66828.0,66813.0,0.3608]
[1729896990654,0.50770643,66828.0,66827.0,0.14632393]
[1729896990957,0.50770643,66828.0,66827.0,0.00224393]
[1729896991256,0.50770643,66828.0,66827.0,0.14632393]
[1729896991459,0.50770643,66828.0,66827.0,0.00224393]
[1729896991857,0.14690843,66827.0,66826.0,0.14408]
[1729896993358,0.14690843,66827.0,66820.0,0.074943]
[1729896993359,0.07197243,66827.0,66820.0,0.074943]
[1729896993559,0.14691343,66822.0,66821.0,0.14408]
[1729896994768,0.074944,66820.0,66817.0,0.074946]
[1729896995058,0.074944,66820.0,66818.0,0.14408]
[1729896995255,0.074944,66819.0,66818.0,0.14408]
[1729896996064,0.074944,66819.0,66817.0,0.074946]
[1729896996260,0.074944,66819.0,66818.0,0.219026]
[1729896999059,0.45494173,66828.0,66818.0,0.14408]
[1729896999252,0.01732672,66828.0,66818.0,0.14408]
[1729896999461,0.07197243,66825.0,66824.0,0.074938]
[1729897000266,0.14691043,66825.0,66824.0,0.219018]
[1729897000964,0.074938,66825.0,66824.0,0.219018]
[1729897001863,0.074938,66825.0,66810.0,0.23605546]
[1729897001864,0.074943,66820.0,66806.0,0.42040777]
[1729897002164,0.074956,66809.0,66808.0,0.14408]
[1729897002467,0.074956,66809.0,66806.0,0.3608]
[1729897002670,0.074956,66809.0,66806.0,0.435759]
[1729897002671,0.523996,66809.0,66806.0,0.435759]
[1729897002862,0.3608,66790.0,66769.0,0.07449245]
[1729897003062,0.44912,66808.0,66756.0,0.075015]
[1729897003063,0.075007,66764.0,66756.0,0.075015]
[1729897003257,0.3608,66761.0,66757.0,0.14412]
[1729897003464,0.3608,66761.0,66760.0,0.075011]
[1729897003662,0.3608,66761.0,66760.0,1.08857877]
[1729897003866,0.3608,66761.0,66760.0,1.36113877]
[1729897004571,0.3608,66761.0,66760.0,1.28612777]
[1729897005260,0.3608,66761.0,66760.0,1.14200777]
[1729897005573,0.3608,66761.0,66760.0,1.28612777]
[1729897006573,0.3608,66761.0,66760.0,1.14200777]
[1729897006775,0.3608,66761.0,66760.0,1.28612777]
[1729897007375,0.10808672,66760.0,66708.0,0.15]
[1729897007564,0.3608,66744.0,66743.0,0.34983662]
[1729897007868,0.3608,66744.0,66743.0,0.93506288]
[1729897008061,0.074998,66772.0,66743.0,0.93506288]
[1729897008062,0.3608,66767.0,66743.0,0.66250288]
[1729897008258,0.435803,66767.0,66766.0,0.34539777]
[1729897008480,0.435803,66767.0,66766.0,0.48951777]
[1729897008660,0.10808672,66766.0,66749.0,0.3608]
[1729897008861,0.3608,66768.0,66750.0,0.14416]
[1729897008862,0.3608,66757.0,66750.0,0.14416]
[1729897009058,0.3608,66757.0,66751.0,0.075021]
[1729897009258,0.435814,66757.0,66756.0,0.34539777]
[1729897009669,0.8102,66757.0,66743.0,0.00224662]
[1729897009860,0.075031,66743.0,66739.0,0.14416]
[1729897010062,0.075031,66743.0,66741.0,0.34539777]
[1729897010361,0.075031,66743.0,66742.0,0.14416]
[1729897010558,0.3608,66745.0,66719.0,0.01726297]
[1729897010559,0.10808672,66742.0,66719.0,0.01726297]
[1729897010766,0.3608,66732.0,66729.0,0.14416]
[1729897010970,0.3608,66732.0,66721.0,0.21617344]
[1729897010971,0.435834,66739.0,66738.0,0.34539777]
[1729897011167,0.435834,66739.0,66738.0,0.48955777]
[1729897011775,0.435834,66739.0,66738.0,0.48959777]
[1729897012477,0.075037,66737.0,66717.0,0.1442]
[1729897012777,0.10808672,66738.0,66717.0,0.1442]
[1729897012778,0.435858,66718.0,66717.0,0.1442]
[1729897012980,0.075051,66724.0,66721.0,0.34539777]
[1729897013269,0.36268001,66726.0,66725.0,0.34539777]
[1729897013471,0.3608,66727.0,66726.0,0.075049]
[1729897013678,0.10808672,66726.0,66716.0,0.2257825]
[1729897013875,0.3608,66743.0,66716.0,0.2257825]
[1729897013876,0.075051,66724.0,66723.0,0.34539777]
[1729897014175,0.075051,66724.0,66723.0,0.48959777]
[1729897015583,0.3608,66725.0,66723.0,0.48959777]
[1729897015877,0.10808672,66740.0,66724.0,0.70581121]
[1729897016081,0.075035,66738.0,66737.0,0.34539777]
[1729897016471,0.3608,66741.0,66737.0,0.34539777]
[1729897016775,0.25232672,66775.0,66726.0,0.3608]
[1729897016776,0.46888672,66753.0,66740.0,0.34539777]
[1729897016971,0.075024,66748.0,66747.0,0.34539777]
[1729897017366,0.21617344,66747.0,66693.0,0.3608]
[1729897017571,0.3608,66702.0,66699.0,0.61248677]
[1729897017869,0.10808672,66700.0,66697.0,0.1522]
[1729897018064,0.075077,66701.0,66696.0,0.6147351]
[1729897018376,0.3608,66702.0,66697.0,0.1522]
[1729897018574,0.10808672,66698.0,66697.0,0.1522]
[1729897018969,0.075078,66701.0,66697.0,0.76468677]
[1729897019174,0.10808672,66701.0,66697.0,0.1522]
[1729897019476,0.00188001,66702.0,66701.0,0.075077]
[1729897019668,0.3608,66718.0,66701.0,0.075077]
[1729897019669,0.46888672,66718.0,66716.0,0.07506]
[1729897019983,0.46888672,66718.0,66717.0,0.227259]
[1729897020274,0.3608,66726.0,66717.0,0.513]
[1729897020479,0.18313472,66727.0,66724.0,0.075051]
[1729897020678,0.18313472,66727.0,66723.0,0.3608]
[1729897020679,0.075044,66731.0,66723.0,0.3608]
[1729897020870,0.3608,66735.0,66723.0,0.3608]
[1729897021070,0.3608,66735.0,66729.0,0.075045]
[1729897021285,0.3608,66735.0,66723.0,0.73892]
[1729897021575,0.3608,66735.0,66733.0,0.075041]
[1729897021777,0.3608,66735.0,66734.0,0.07504]
[1729897021982,0.3608,66735.0,66732.0,0.075042]
[1729897022169,0.3608,66735.0,66733.0,0.07504]
[1729897022373,0.075032,66741.0,66734.0,0.43584]
[1729897022573,0.075034,66740.0,66734.0,0.07504]
[1729897022782,0.075035,66739.0,66734.0,0.07504]
[1729897023096,0.075035,66739.0,66729.0,0.3608]
[1729897023097,0.10808672,66744.0,66729.0,0.3608]
[1729897023281,0.10808672,66744.0,66737.0,0.075037]
[1729897023480,0.075031,66742.0,66738.0,0.15224]
[1729897024080,0.075032,66741.0,66738.0,0.15224]
[1729897024286,0.10808672,66744.0,66739.0,0.075034]
[1729897024484,0.10808672,66744.0,66738.0,0.15224]
[1729897024485,0.3608,66748.0,66738.0,0.15224]
[1729897024684,0.3608,66748.0,66743.0,0.075029]
[1729897024871,0.3608,66748.0,66739.0,0.0572]
[1729897025077,0.3608,66748.0,66742.0,0.3608]
[1729897025376,0.075013,66758.0,66743.0,0.0597]
[1729897025680,0.075013,66758.0,66748.0,0.3608]
[1729897025880,0.10808672,66756.0,66753.0,0.075018]
[1729897026281,0.10808672,66761.0,66754.0,0.075017]
[1729897026484,0.10808672,66761.0,66748.0,0.3608]
[1729897026485,0.00136,66762.0,66758.0,0.075013]
[1729897026684,0.10808672,66761.0,66758.0,0.227253]
[1729897026891,0.10808672,66761.0,66758.0,0.15224]
[1729897027486,0.10808672,66766.0,66758.0,0.15224]
[1729897027877,0.46888672,66772.0,66758.0,0.15224]
[1729897028075,0.075,66770.0,66761.0,0.075009]
[1729897028278,0.075,66770.0,66759.0,0.0631]
[1729897028483,0.075,66770.0,66760.0,0.21617344]
[1729897028677,0.3608,66772.0,66764.0,0.075006]
[1729897029079,0.3608,66772.0,66760.0,0.21617344]
[1729897029279,0.47024672,66777.0,66769.0,0.075]
[1729897029280,0.36216,66777.0,66769.0,0.075]
[1729897029582,0.3608,66777.0,66771.0,0.074998]
[1729897029786,0.3608,66777.0,66772.0,0.074997]
[1729897029980,0.3608,66777.0,66767.0,0.3608]
[1729897029981,0.3608,66777.0,66774.0,0.074994]
[1729897030188,0.074986,66782.0,66775.0,0.074993]
[1729897030384,0.074986,66782.0,66776.0,0.1522]
[1729897030687,0.074986,66782.0,66776.0,0.227193]
[1729897030889,0.074981,66787.0,66779.0,0.074989]
[1729897031080,0.074981,66787.0,66782.0,0.074986]
[1729897031283,0.074981,66787.0,66783.0,0.074985]
[1729897031683,0.074981,66787.0,66780.0,0.0619]
[1729897031893,0.10808672,66794.0,66779.0,0.0008]
[1729897031894,0.10808672,66780.0,66779.0,0.0008]
[1729897032086,0.075006,66764.0,66763.0,0.3608]
[1729897032689,0.075006,66764.0,66763.0,0.513]
[1729897032883,0.075006,66764.0,66763.0,0.3608]
[1729897033094,0.36248,66768.0,66763.0,0.513]
[1729897033295,0.3608,66768.0,66763.0,0.513]
[1729897033501,0.075004,66766.0,66763.0,0.513]
[1729897033798,0.3608,66782.0,66764.0,0.60152]
[1729897033997,0.3608,66782.0,66773.0,0.074996]
[1729897034299,0.074991,66778.0,66773.0,0.074996]
[1729897034688,0.074991,66778.0,66764.0,0.36837344]
[1729897034689,0.3608,66782.0,66765.0,0.075004]
[1729897034896,0.074989,66780.0,66764.0,0.36837344]
[1729897035197,0.074989,66780.0,66765.0,0.22602326]
[1729897035399,0.3608,66782.0,66765.0,0.22602326]
[1729897035595,0.3608,66782.0,66777.0,0.074991]
[1729897036100,0.3608,66782.0,66770.0,0.21617344]
[1729897036297,0.3608,66782.0,66778.0,0.07499]
[1729897036500,0.3608,66790.0,66787.0,0.074979]
[1729897036794,0.3608,66798.0,66792.0,0.074974]
[1729897036997,0.3608,66798.0,66793.0,0.074974]
[1729897037190,0.3608,66798.0,66797.0,0.074969]
[1729897037393,0.074962,66804.0,66799.0,0.074967]
[1729897037694,0.3608,66806.0,66799.0,0.074967]
[1729897037898,0.074965,66801.0,66797.0,0.074969]
[1729897038114,0.074965,66801.0,66793.0,0.57773344]
[1729897038399,0.43576,66806.0,66799.0,0.074967]
[1729897038698,0.3608,66806.0,66799.0,0.074967]
[1729897038903,0.3608,66806.0,66793.0,0.57697344]
[1729897039096,0.074963,66803.0,66795.0,0.074971]
[1729897039290,0.074963,66803.0,66796.0,0.074969]
[1729897039488,0.10808672,66796.0,66793.0,0.00076]
[1729897039804,0.074974,66793.0,66792.0,0.15216]
[1729897040294,0.524134,66793.0,66792.0,0.15216]
[1729897040496,0.074985,66783.0,66778.0,0.07499]
[1729897040799,0.074985,66783.0,66779.0,0.15216]
[1729897041698,0.074985,66783.0,66780.0,0.074988]
[1729897042194,0.435779,66788.0,66784.0,0.074984]
[1729897042401,0.07498,66787.0,66784.0,0.074984]
[1729897042589,0.074982,66786.0,66784.0,0.074984]
[1729897042789,0.3608,66788.0,66784.0,0.074984]
[1729897042985,0.3608,66788.0,66785.0,0.15216]
[1729897043189,0.3608,66788.0,66785.0,0.09963721]
[1729897043794,0.074982,66786.0,66785.0,0.09963721]
[1729897047901,0.074979,66789.0,66785.0,0.09963721]
[1729897048207,0.3608,66790.0,66787.0,0.07498]
[1729897048396,0.435777,66790.0,66787.0,0.07498]
[1729897048800,0.3608,66803.0,66787.0,0.44916]
[1729897048997,0.3608,66803.0,66792.0,0.074975]
[1729897049199,0.074972,66795.0,66792.0,0.074975]
[1729897049399,0.074972,66795.0,66792.0,0.524135]
[1729897049806,0.3608,66803.0,66792.0,0.524135]
[1729897049999,0.074974,66793.0,66787.0,0.07498]
[1729897050297,0.074959,66807.0,66777.0,0.3608]
[1729897050298,0.074986,66782.0,66777.0,0.3608]
[1729897050604,0.46888672,66791.0,66778.0,0.1508]
[1729897050904,0.074988,66781.0,66779.0,0.1508]
[1729897051308,0.074988,66780.0,66779.0,0.1508]
[1729897052094,0.074988,66780.0,66777.0,0.3608]
[1729897052300,0.075,66770.0,66767.0,0.075002]
[1729897052499,0.075004,66766.0,66763.0,0.37792]
[1729897052702,0.075004,66766.0,66765.0,0.153046]
[1729897054010,0.075004,66766.0,66765.0,0.002246]
[1729897054208,0.075004,66766.0,66765.0,0.153046]
[1729897054698,0.075004,66766.0,66765.0,0.002246]
[1729897054907,0.075004,66766.0,66765.0,0.153046]
[1729897056410,0.075004,66766.0,66763.0,0.37792]
[1729897056603,0.075012,66759.0,66758.0,0.1508]
[1729897056802,0.54389872,66759.0,66758.0,0.1508]
[1729897057212,0.075016,66756.0,66750.0,0.436702]
[1729897057407,0.075016,66756.0,66752.0,0.07502]